[Event "Astana Open-A 2019"]
[Site "Nur-Sultan"]
[Date "2019.07.10"]
[Round "2"]
[White "Stupak, Kirill"]
[Black "Kazakov, Konstantin"]
[Result "1-0"]
[ECO "D52"]
[WhiteElo "2560"]
[BlackElo "2380"]
[Annotator "RC"]
[PlyCount "103"]
[EventDate "2019.07.11"]
[EventCountry "KAZ"]
[SourceTitle "playchess.com"]
[Source "ChessBase"]
[SourceQuality "1"]
[TimeControl "90+30"]

1. d4 {[%emt 0:00:00]} Nf6 {[%emt 0:00:00]} 2. c4 {[%emt 0:00:00]} e6 {[%emt 0:00:00]} 3. Nf3 {[%emt 0:00:00]} d5 {[%emt 0:00:00]} 4. Bg5 {[%emt 0:00:00]} Nbd7 {[%emt 0:00:00]} 5. e3 {[%emt 0:00:00]} c6 {[%emt 0:00:00]} 6. Nc3 {[%emt 0:00:00]} Qa5 {[%emt 0:00:00]} 7. cxd5 {[%emt 0:00:00]} exd5 {[%emt 0:00:00]} 8. Bd3 {[%emt 0:00:00]} Bb4 {[%emt 0:00:00]} 9. Qc2 {[%emt 0:00:00]} O-O {[%emt 0:00:00]} 10. O-O {[%emt 0:00:00]} Re8 {[%emt 0:00:00]} 11. Rfc1 {[%emt 0:00:00]} Bxc3 {[%emt 0:00:00]} 12. bxc3 {[%emt 0:00:00]} Ne4 {[%emt 0:00:00]} 13. Bf4 {[%emt 0:00:00]} Nb6 {[%emt 0:00:00]} 14. a4 {[%emt 0:00:00]} g6 {[%emt 0:00:00]} 15. h3 {[%emt 0:00:00]} c5 {[%emt 0:00:00]} 16. Bb5 {[%emt 0:00:00]} Bd7 {[%emt 0:00:00]} 17. Ne5 {[%emt 0:00:00]} Bf5 {[%emt 0:00:00]} 18. Bxe8 {[%emt 0:00:00]} Rxe8 {[%emt 0:00:00]} 19. Qb3 {[%emt 0:00:00]} f6 {[%emt 0:00:00]} 20. Nf3 {[%emt 0:00:00]} Bd7 {[%emt 0:00:00]} 21. Bc7 {[%emt 0:00:00]} c4 {[%emt 0:00:00]} 22. Qb2 {[%emt 0:00:00]} Re6 {[%emt 0:00:00]} 23. Nd2 {[%emt 0:00:00]} Nxd2 {[%emt 0:00:00]} 24. Qxd2 {[%emt 0:00:00]} Qa6 {[%emt 0:00:00]} 25. a5 {[%emt 0:00:00]} Na4 {[%emt 0:00:00]} 26. Qc2 {[%emt 0:00:00]} b5 {[%emt 0:00:00]} 27. axb6 {[%emt 0:00:00]} axb6 {[%emt 0:00:00]} 28. Qa2 {[%emt 0:00:00]} Qc8 {[%emt 0:00:00]} 29. Bg3 {[%emt 0:00:00]} Qf8 {[%emt 0:00:00]} 30. Qa3 {[%emt 0:00:00]} Qxa3 {[%emt 0:00:00]} 31. Rxa3 {[%emt 0:00:00]} b5 {[%emt 0:00:00]} 32. Bc7 {[%emt 0:00:00]} Ra6 {[%emt 0:00:00]} 33. f3 {[%emt 0:00:00]} Bf5 {[%emt 0:00:00]} 34. e4 {[%emt 0:00:00]} Be6 {[%emt 0:00:00]} 35. Rb1 {[%emt 0:00:00]} Bd7 {[%emt 0:00:00]} 36. exd5 {[%emt 0:00:00]} Ra8 {[%emt 0:00:00]} 37. Re1 {[%emt 0:00:00]} Kf7 {[%emt 0:00:00]} 38. Bd6 {[%emt 0:00:00]} Re8 {[%emt 0:00:00]} 39. Rxe8 {[%emt 0:00:00]} Kxe8 {[%emt 0:00:00]} 40. Bb4 {[%emt 0:00:00]} Nb6 {[%emt 0:00:00]} 41. d6 {[%emt 0:00:00]} Kf7 {[%emt 0:00:00]} 42. Ra1 {[%emt 0:00:00]} g5 {[%emt 0:00:00]} 43. Kf2 {[%emt 0:00:00]} Nd5 {[%emt 0:00:00]} 44. h4 {[%emt 0:00:00]} h6 {[%emt 0:00:00]} 45. h5 {[%emt 0:00:00]} Nb6 {[%emt 0:00:00]} 46. Ra6 {[%emt 0:01:38]} Nc8 {[%emt 0:00:00]} 47. d5 {[%emt 0:00:51]} f5 {[%emt 0:00:00]} 48. Ke3 {[%emt 0:00:23]} Kf6 {[%emt 0:00:00]} 49. Kd4 {[%emt 0:00:12]} f4 {[%emt 0:00:00]} 50. Rc6 {[%emt 0:00:28]} Kf7 {[%emt 0:00:00]} 51. Ke5 {[%emt 0:00:15]} Ke8 {[%emt 0:00:00]} 52. Bc5 {[%emt 0:00:18]} 1-0

[Event "Astana Open-A 2019"]
[Site "Nur-Sultan"]
[Date "2019.07.10"]
[Round "2"]
[White "Zhalmakhanov, Ramazan"]
[Black "Shomoev, Anton"]
[Result "1/2-1/2"]
[ECO "B87"]
[WhiteElo "2367"]
[BlackElo "2559"]
[Annotator "RC"]
[PlyCount "103"]
[EventDate "2019.07.11"]
[EventCountry "KAZ"]
[SourceTitle "playchess.com"]
[Source "ChessBase"]
[SourceQuality "1"]
[TimeControl "90+30"]

1. e4 {[%emt 0:00:00]} c5 {[%emt 0:00:00]} 2. Nf3 {[%emt 0:00:00]} d6 {[%emt 0:00:00]} 3. d4 {[%emt 0:00:00]} cxd4 {[%emt 0:00:00]} 4. Nxd4 {[%emt 0:00:00]} Nf6 {[%emt 0:00:00]} 5. Nc3 {[%emt 0:00:00]} a6 {[%emt 0:00:00]} 6. Bc4 {[%emt 0:00:00]} e6 {[%emt 0:00:00]} 7. Bb3 {[%emt 0:00:00]} b5 {[%emt 0:00:00]} 8. O-O {[%emt 0:00:00]} Be7 {[%emt 0:00:00]} 9. Qf3 {[%emt 0:00:00]} Qc7 {[%emt 0:00:00]} 10. Qg3 {[%emt 0:00:00]} O-O {[%emt 0:00:00]} 11. Bh6 {[%emt 0:00:00]} Ne8 {[%emt 0:00:00]} 12. Rad1 {[%emt 0:00:00]} Bd7 {[%emt 0:00:00]} 13. Rfe1 {[%emt 0:00:00]} Bf6 {[%emt 0:00:00]} 14. Bg5 {[%emt 0:00:00]} Bxg5 {[%emt 0:00:00]} 15. Qxg5 {[%emt 0:00:00]} Nc6 {[%emt 0:00:00]} 16. Nce2 {[%emt 0:00:00]} Nf6 {[%emt 0:00:00]} 17. Ng3 {[%emt 0:00:00]} Rfd8 {[%emt 0:00:00]} 18. Nxc6 {[%emt 0:00:00]} Bxc6 {[%emt 0:00:00]} 19. Rd4 {[%emt 0:00:00]} Rd7 {[%emt 0:00:00]} 20. f3 {[%emt 0:00:00]} Qb6 {[%emt 0:00:00]} 21. Qe3 {[%emt 0:00:00]} a5 {[%emt 0:00:00]} 22. a3 {[%emt 0:00:00]} b4 {[%emt 0:00:00]} 23. axb4 {[%emt 0:00:00]} axb4 {[%emt 0:00:00]} 24. Rdd1 {[%emt 0:00:00]} Qxe3+ {[%emt 0:00:00]} 25. Rxe3 {[%emt 0:00:00]} Kf8 {[%emt 0:00:00]} 26. Red3 {[%emt 0:00:00]} d5 {[%emt 0:00:00]} 27. e5 {[%emt 0:03:06]} Ne8 {[%emt 0:00:00]} 28. f4 {[%emt 0:00:27]} g6 {[%emt 0:00:00]} 29. Kf2 {[%emt 0:02:27]} Rb7 {[%emt 0:00:00]} 30. R3d2 {[%emt 0:02:03]} Nc7 {[%emt 0:01:01]} 31. Ne2 {[%emt 0:00:18]} Rb6 {[%emt 0:04:06]} 32. Nd4 {[%emt 0:00:49]} Na6 {[%emt 0:00:09]} 33. Ra1 {[%emt 0:02:11]} Nc5 {[%emt 0:00:18]} 34. Rxa8+ {[%emt 0:01:16]} Bxa8 {[%emt 0:00:02]} 35. Ke3 {[%emt 0:00:20]} Bc6 {[%emt 0:03:46]} 36. Rd1 {[%emt 0:00:53]} Ra6 {[%emt 0:00:16]} 37. g4 {[%emt 0:00:55]} Bd7 {[%emt 0:00:46]} 38. h4 {[%emt 0:01:04]} Ke7 {[%emt 0:05:56]} 39. Rh1 {[%emt 0:01:07]} Ne4 {[%emt 0:01:26]} 40. Rd1 {[%emt 0:02:18]} Nc5 {[%emt 0:01:53]} 41. Rh1 {[%emt 0:01:02]} f6 {[%emt 0:00:41]} 42. exf6+ {[%emt 0:00:32]} Kxf6 {[%emt 0:00:02]} 43. g5+ {[%emt 0:00:31]} Kg7 {[%emt 0:00:35]} 44. h5 {[%emt 0:01:05]} gxh5 {[%emt 0:00:19]} 45. Rxh5 {[%emt 0:00:05]} Be8 {[%emt 0:00:29]} 46. Rh1 {[%emt 0:00:21]} Bg6 {[%emt 0:00:15]} 47. Rd1 {[%emt 0:00:39]} Be4 {[%emt 0:00:16]} 48. Nb5 {[%emt 0:01:13]} Rb6 {[%emt 0:01:29]} 49. Nd4 {[%emt 0:00:07]} Ra6 {[%emt 0:00:07]} 50. Nb5 {[%emt 0:00:05]} Rb6 {[%emt 0:01:38]} 51. Nd4 {[%emt 0:00:06]} Ra6 {[%emt 0:00:31]} 52. Nb5 {[%emt 0:00:22]} 1/2-1/2

[Event "Astana Open-A 2019"]
[Site "Nur-Sultan"]
[Date "2019.07.12"]
[Round "4.1"]
[White "Vitaly, Sivuk"]
[Black "Ayan, Akhmetov"]
[Result "1-0"]
[ECO "E10"]
[WhiteElo "2546"]
[BlackElo "2430"]
[Annotator "ChessBase"]
[PlyCount "93"]
[EventDate "2019.07.11"]
[EventCountry "KAZ"]
[SourceTitle "playchess.com"]
[Source "ChessBase"]
[SourceQuality "1"]
[TimeControl "5400+30"]

1. d4 {[%emt 0:00:00]} Nf6 {[%emt 0:00:00]} 2. c4 {[%emt 0:00:00]} Nc6 {[%emt 0:00:17]} 3. Nf3 {[%emt 0:01:22]} e6 {[%emt 0:00:12]} 4. g3 {[%emt 0:00:51]} Bb4+ {[%emt 0:02:35]} 5. Bd2 {[%emt 0:01:07]} O-O {[%emt 0:01:08]} 6. Bg2 {[%emt 0:01:08]} Re8 {[%emt 0:04:05]} 7. O-O {[%emt 0:01:30]} d5 {[%emt 0:03:46]} 8. Qc2 {[%emt 0:08:18]} a6 {[%emt 0:08:41]} 9. Rd1 {[%emt 0:01:30]} h6 {[%emt 0:04:41]} 10. Bxb4 {[%emt 0:05:56]} Nxb4 {[%emt 0:00:07]} 11. Qc3 {[%emt 0:00:12]} Nc6 {[%emt 0:01:50]} 12. Nbd2 {[%emt 0:00:29]} Bd7 {[%emt 0:10:17]} 13. Rac1 {[%emt 0:04:04]} Ne4 {[%emt 0:05:26]} 14. Qc2 {[%emt 0:18:36]} f5 {[%emt 0:09:36]} 15. cxd5 {[%emt 0:02:23]} exd5 {[%emt 0:00:01]} 16. Qb3 {[%emt 0:00:26]} Bc8 {[%emt 0:00:32]} 17. e3 {[%emt 0:08:54]} Kh8 {[%emt 0:02:11]} 18. Ne1 {[%emt 0:02:17]} Qd6 {[%emt 0:03:42]} 19. Nd3 {[%emt 0:00:41]} Nd8 {[%emt 0:03:01]} 20. Nf3 {[%emt 0:00:56]} Be6 {[%emt 0:05:28]} 21. Nfe5 {[%emt 0:00:54]} c6 {[%emt 0:01:06]} 22. f3 {[%emt 0:01:33]} Nf6 {[%emt 0:00:28]} 23. Nc5 {[%emt 0:00:35]} Rb8 {[%emt 0:01:12]} 24. Bh3 {[%emt 0:02:09]} Kg8 {[%emt 0:00:58]} 25. Qc2 {[%emt 0:03:08]} Nf7 {[%emt 0:06:41]} 26. Nxe6 {[%emt 0:02:23]} Rxe6 {[%emt 0:00:17]} 27. Bxf5 {[%emt 0:00:13]} Rxe5 {[%emt 0:01:09]} 28. dxe5 {[%emt 0:00:07]} Nxe5 {[%emt 0:00:08]} 29. Qe2 {[%emt 0:03:19]} Re8 {[%emt 0:00:34]} 30. e4 {[%emt 0:02:42]} g6 {[%emt 0:02:30]} 31. Bh3 {[%emt 0:00:25]} g5 {[%emt 0:01:38]} 32. Bf5 {[%emt 0:01:45]} Nf7 {[%emt 0:01:45]} 33. Qf2 {[%emt 0:01:22]} Qb8 {[%emt 0:03:59]} 34. exd5 {[%emt 0:06:04]} Nxd5 {[%emt 0:00:06]} 35. Re1 {[%emt 0:00:08]} Re5 {[%emt 0:00:36]} 36. Be6 {[%emt 0:00:49]} Qd6 {[%emt 0:00:15]} 37. Rxe5 {[%emt 0:00:24]} Qxe5 {[%emt 0:00:07]} 38. Re1 {[%emt 0:00:07]} Qf6 {[%emt 0:00:40]} 39. Bxd5 {[%emt 0:04:50]} cxd5 {[%emt 0:00:09]} 40. Rd1 {[%emt 0:00:05]} Qf5 {[%emt 0:01:55]} 41. f4 {[%emt 0:01:24]} gxf4 {[%emt 0:01:00]} 42. Qxf4 {[%emt 0:00:10]} Qc2 {[%emt 0:00:40]} 43. Qd2 {[%emt 0:00:32]} Qc5+ {[%emt 0:00:07]} 44. Qd4 {[%emt 0:00:09]} Qb5 {[%emt 0:00:14]} 45. Rd2 {[%emt 0:01:07]} Kf8 {[%emt 0:00:43]} 46. Qxd5 {[%emt 0:00:25]} Qe8 {[%emt 0:00:09]} 47. Rf2 {[%emt 0:00:18]} 1-0

[Event "Astana Open-A 2019"]
[Site "Nur-Sultan"]
[Date "2019.07.12"]
[Round "4.2"]
[White "Arjun, Erigaisi"]
[Black "Alibek, Igambergenov"]
[Result "1-0"]
[ECO "A13"]
[WhiteElo "2531"]
[BlackElo "2337"]
[Annotator "ChessBase"]
[PlyCount "95"]
[EventDate "2019.07.11"]
[EventCountry "KAZ"]
[SourceTitle "playchess.com"]
[Source "ChessBase"]
[SourceQuality "1"]
[TimeControl "5400+30"]

1. d4 {[%emt 0:00:00]} Nf6 {[%emt 0:00:00]} 2. c4 {[%emt 0:00:00]} e6 {[%emt 0:00:00]} 3. Nf3 {[%emt 0:00:57]} d5 {[%emt 0:00:18]} 4. Nc3 {[%emt 0:00:14]} a6 {[%emt 0:00:06]} 5. cxd5 {[%emt 0:00:38]} exd5 {[%emt 0:00:04]} 6. g3 {[%emt 0:00:08]} Bd6 {[%emt 0:00:31]} 7. Bg2 {[%emt 0:00:13]} O-O {[%emt 0:00:21]} 8. O-O {[%emt 0:01:10]} c6 {[%emt 0:00:33]} 9. Qb3 {[%emt 0:01:52]} Qc7 {[%emt 0:08:27]} 10. Bg5 {[%emt 0:13:38]} Nbd7 {[%emt 0:10:22]} 11. Nh4 {[%emt 0:01:25]} h6 {[%emt 0:01:59]} 12. Bd2 {[%emt 0:00:52]} Nb6 {[%emt 0:07:13]} 13. Qc2 {[%emt 0:01:11]} Nc4 {[%emt 0:01:25]} 14. Bc1 {[%emt 0:01:07]} Be6 {[%emt 0:03:51]} 15. a4 {[%emt 0:06:48]} Qb6 {[%emt 0:08:17]} 16. Rd1 {[%emt 0:22:23]} Na5 {[%emt 0:10:25]} 17. Rb1 {[%emt 0:08:24]} Qb3 {[%emt 0:01:48]} 18. Qd3 {[%emt 0:02:28]} b5 {[%emt 0:04:16]} 19. Nf3 {[%emt 0:02:37]} bxa4 {[%emt 0:08:04]} 20. Nd2 {[%emt 0:01:38]} Qb6 {[%emt 0:06:27]} 21. Ra1 {[%emt 0:00:40]} a3 {[%emt 0:03:54]} 22. bxa3 {[%emt 0:03:47]} Rfb8 {[%emt 0:00:59]} 23. Rb1 {[%emt 0:03:03]} Qa7 {[%emt 0:00:29]} 24. Bb2 {[%emt 0:01:15]} Rb7 {[%emt 0:02:41]} 25. e4 {[%emt 0:02:37]} Rab8 {[%emt 0:01:21]} 26. Qc2 {[%emt 0:03:17]} Be7 {[%emt 0:01:18]} 27. e5 {[%emt 0:03:55]} Nd7 {[%emt 0:00:07]} 28. Na4 {[%emt 0:00:54]} Nb6 {[%emt 0:05:23]} 29. Nxb6 {[%emt 0:01:22]} Rxb6 {[%emt 0:00:04]} 30. Bc3 {[%emt 0:00:23]} Rxb1 {[%emt 0:00:05]} 31. Rxb1 {[%emt 0:00:10]} Rxb1+ {[%emt 0:00:04]} 32. Qxb1 {[%emt 0:00:07]} Nb7 {[%emt 0:00:09]} 33. Qb3 {[%emt 0:01:37]} c5 {[%emt 0:03:18]} 34. Bxd5 {[%emt 0:00:53]} cxd4 {[%emt 0:00:03]} 35. Bxe6 {[%emt 0:00:16]} dxc3 {[%emt 0:00:03]} 36. Bxf7+ {[%emt 0:00:14]} Kh8 {[%emt 0:02:15]} 37. Qxc3 {[%emt 0:00:26]} Nd8 {[%emt 0:00:07]} 38. Ba2 {[%emt 0:00:38]} Qd7 {[%emt 0:01:07]} 39. Qb3 {[%emt 0:02:02]} Qe8 {[%emt 0:00:05]} 40. Nf3 {[%emt 0:00:24]} a5 {[%emt 0:00:14]} 41. Qd3 {[%emt 0:02:05]} Qc6 {[%emt 0:01:08]} 42. Nd4 {[%emt 0:01:49]} Qc1+ {[%emt 0:02:16]} 43. Kg2 {[%emt 0:00:07]} Qc8 {[%emt 0:00:04]} 44. Bb1 {[%emt 0:00:29]} Kg8 {[%emt 0:00:48]} 45. Qh7+ {[%emt 0:00:45]} Kf8 {[%emt 0:00:06]} 46. Qh8+ {[%emt 0:00:05]} Kf7 {[%emt 0:00:05]} 47. Ba2+ {[%emt 0:00:04]} Kg6 {[%emt 0:00:07]} 48. Qe8+ {[%emt 0:00:06]} 1-0

[Event "Astana Open-A 2019"]
[Site "Nur-Sultan"]
[Date "2019.07.12"]
[Round "4.3"]
[White "Evgeniy, Pak"]
[Black "Farrukh, Amanatov"]
[Result "0-1"]
[ECO "E71"]
[WhiteElo "2402"]
[BlackElo "2632"]
[Annotator "ChessBase"]
[PlyCount "132"]
[EventDate "2019.07.11"]
[EventCountry "KAZ"]
[SourceTitle "playchess.com"]
[Source "ChessBase"]
[SourceQuality "1"]
[TimeControl "5400+30"]

1. d4 {[%emt 0:13:33]} Nf6 {[%emt 0:00:00]} 2. c4 {[%emt 0:00:11]} g6 {[%emt 0:00:00]} 3. Nc3 {[%emt 0:00:13]} Bg7 {[%emt 0:00:00]} 4. e4 {[%emt 0:00:05]} d6 {[%emt 0:00:00]} 5. h3 {[%emt 0:00:17]} O-O {[%emt 0:00:19]} 6. Be3 {[%emt 0:00:04]} e5 {[%emt 0:04:13]} 7. d5 {[%emt 0:00:14]} a5 {[%emt 0:00:03]} 8. g4 {[%emt 0:00:20]} Na6 {[%emt 0:00:06]} 9. Nge2 {[%emt 0:00:20]} Nd7 {[%emt 0:05:56]} 10. Qd2 {[%emt 0:01:14]} Ndc5 {[%emt 0:00:06]} 11. Ng3 {[%emt 0:00:31]} c6 {[%emt 0:00:10]} 12. O-O-O {[%emt 0:07:05]} cxd5 {[%emt 0:12:09]} 13. Qxd5 {[%emt 0:04:20]} Be6 {[%emt 0:31:31]} 14. Qxd6 {[%emt 0:00:59]} Qc8 {[%emt 0:00:04]} 15. Kb1 {[%emt 0:07:56]} Qc6 {[%emt 0:02:42]} 16. Qd2 {[%emt 0:02:40]} Nb4 {[%emt 0:02:31]} 17. Nd5 {[%emt 0:01:38]} Qa4 {[%emt 0:04:41]} 18. Nc3 {[%emt 0:01:30]} Qc6 {[%emt 0:00:05]} 19. Be2 {[%emt 0:01:07]} Rfc8 {[%emt 0:06:24]} 20. Rc1 {[%emt 0:05:48]} Bf8 {[%emt 0:00:56]} 21. Rhd1 {[%emt 0:02:10]} Qe8 {[%emt 0:02:33]} 22. Bg5 {[%emt 0:02:15]} Be7 {[%emt 0:04:44]} 23. Bxe7 {[%emt 0:04:10]} Qxe7 {[%emt 0:04:34]} 24. g5 {[%emt 0:00:05]} Nc6 {[%emt 0:05:23]} 25. Nd5 {[%emt 0:02:12]} Bxd5 {[%emt 0:00:10]} 26. exd5 {[%emt 0:00:04]} Nd4 {[%emt 0:00:06]} 27. Bg4 {[%emt 0:00:20]} Re8 {[%emt 0:04:57]} 28. Re1 {[%emt 0:02:35]} Qd6 {[%emt 0:00:40]} 29. Ne4 {[%emt 0:00:26]} Nxe4 {[%emt 0:00:16]} 30. Rxe4 {[%emt 0:00:01]} h5 {[%emt 0:00:52]} 31. gxh6 {[%emt 0:08:31]} f5 {[%emt 0:00:09]} 32. Rxd4 {[%emt 0:00:02]} exd4 {[%emt 0:00:11]} 33. Bxf5 {[%emt 0:00:08]} Qf6 {[%emt 0:00:38]} 34. Bd3 {[%emt 0:00:20]} Kh8 {[%emt 0:00:42]} 35. Rg1 {[%emt 0:00:43]} Rg8 {[%emt 0:00:04]} 36. Be4 {[%emt 0:02:57]} Rac8 {[%emt 0:00:19]} 37. Rc1 {[%emt 0:01:38]} b6 {[%emt 0:00:15]} 38. f3 {[%emt 0:00:06]} Rc7 {[%emt 0:00:49]} 39. h4 {[%emt 0:00:27]} Rgc8 {[%emt 0:02:47]} 40. Qg5 {[%emt 0:00:09]} Rf8 {[%emt 0:02:43]} 41. Qg3 {[%emt 0:03:47]} Rh7 {[%emt 0:00:42]} 42. h5 {[%emt 0:00:55]} gxh5 {[%emt 0:00:46]} 43. Bxh7 {[%emt 0:00:27]} Kxh7 {[%emt 0:00:01]} 44. Re1 {[%emt 0:08:19]} h4 {[%emt 0:02:51]} 45. Qg7+ {[%emt 0:05:32]} Qxg7 {[%emt 0:00:02]} 46. hxg7 {[%emt 0:00:05]} Kxg7 {[%emt 0:00:46]} 47. Re4 {[%emt 0:00:06]} Rh8 {[%emt 0:01:44]} 48. Rxd4 {[%emt 0:00:10]} h3 {[%emt 0:00:03]} 49. Rd1 {[%emt 0:00:58]} h2 {[%emt 0:00:02]} 50. Rh1 {[%emt 0:00:04]} Kf6 {[%emt 0:00:05]} 51. d6 {[%emt 0:00:42]} Ke6 {[%emt 0:00:19]} 52. Kc2 {[%emt 0:00:10]} Kxd6 {[%emt 0:00:06]} 53. Kd3 {[%emt 0:00:06]} Ke5 {[%emt 0:02:51]} 54. Ke3 {[%emt 0:00:09]} Rh4 {[%emt 0:00:22]} 55. b3 {[%emt 0:00:16]} Rh3 {[%emt 0:00:44]} 56. a3 {[%emt 0:00:32]} Rh8 {[%emt 0:00:25]} 57. Kf2 {[%emt 0:02:20]} Kd4 {[%emt 0:00:14]} 58. Kg2 {[%emt 0:03:36]} Kc3 {[%emt 0:00:11]} 59. f4 {[%emt 0:02:14]} Kxb3 {[%emt 0:00:15]} 60. f5 {[%emt 0:00:59]} Kxc4 {[%emt 0:01:10]} 61. Kf3 {[%emt 0:02:35]} b5 {[%emt 0:00:22]} 62. Kg4 {[%emt 0:00:17]} Kb3 {[%emt 0:00:15]} 63. Kg5 {[%emt 0:00:20]} Kxa3 {[%emt 0:00:06]} 64. Kg6 {[%emt 0:00:17]} b4 {[%emt 0:00:11]} 65. Kg7 {[%emt 0:00:34]} Rb8 {[%emt 0:01:08]} 66. Rxh2 {[%emt 0:00:06]} b3 {[%emt 0:00:04]} 0-1

[Event "Astana Open-A 2019"]
[Site "Nur-Sultan"]
[Date "2019.07.12"]
[Round "4.4"]
[White "Vadim, Malakhatko"]
[Black "Shomoev, Anton"]
[Result "1-0"]
[ECO "E94"]
[WhiteElo "2462"]
[BlackElo "2559"]
[Annotator "ChessBase"]
[PlyCount "165"]
[EventDate "2019.07.11"]
[EventCountry "KAZ"]
[SourceTitle "playchess.com"]
[Source "ChessBase"]
[SourceQuality "1"]
[TimeControl "5400+30"]

1. c4 {[%emt 0:00:00]} g6 {[%emt 0:00:00]} 2. d4 {[%emt 0:00:00]} Nf6 {[%emt 0:00:00]} 3. Nc3 {[%emt 0:00:00]} Bg7 {[%emt 0:00:00]} 4. e4 {[%emt 0:00:00]} d6 {[%emt 0:00:00]} 5. Nf3 {[%emt 0:00:03]} O-O {[%emt 0:00:01]} 6. Be2 {[%emt 0:00:07]} e5 {[%emt 0:00:04]} 7. O-O {[%emt 0:00:08]} c6 {[%emt 0:00:03]} 8. Re1 {[%emt 0:00:34]} exd4 {[%emt 0:00:07]} 9. Nxd4 {[%emt 0:00:05]} Re8 {[%emt 0:00:04]} 10. Bf1 {[%emt 0:03:38]} Qb6 {[%emt 0:01:05]} 11. Na4 {[%emt 0:11:20]} Qa5 {[%emt 0:11:36]} 12. Nc3 {[%emt 0:00:59]} Qb6 {[%emt 0:05:43]} 13. Na4 {[%emt 0:00:07]} Qa5 {[%emt 0:01:39]} 14. Nc3 {[%emt 0:00:06]} Ng4 {[%emt 0:03:22]} 15. h3 {[%emt 0:07:18]} Qc5 {[%emt 0:04:41]} 16. hxg4 {[%emt 0:00:06]} Bxd4 {[%emt 0:01:03]} 17. Be3 {[%emt 0:00:10]} Bxe3 {[%emt 0:00:04]} 18. Rxe3 {[%emt 0:00:05]} Nd7 {[%emt 0:00:22]} 19. Be2 {[%emt 0:03:13]} Nf6 {[%emt 0:06:44]} 20. g5 {[%emt 0:02:51]} Qxg5 {[%emt 0:15:35]} 21. Qxd6 {[%emt 0:00:07]} Ng4 {[%emt 0:00:16]} 22. Bxg4 {[%emt 0:10:21]} Bxg4 {[%emt 0:00:40]} 23. e5 {[%emt 0:01:11]} Bf5 {[%emt 0:07:04]} 24. Rae1 {[%emt 0:10:06]} Rad8 {[%emt 0:10:16]} 25. Qc5 {[%emt 0:00:48]} Qf4 {[%emt 0:05:13]} 26. Ne2 {[%emt 0:23:07]} Qh4 {[%emt 0:01:49]} 27. b3 {[%emt 0:06:01]} Qe7 {[%emt 0:03:42]} 28. Qxa7 {[%emt 0:03:16]} Ra8 {[%emt 0:02:15]} 29. Qd4 {[%emt 0:00:06]} Rxa2 {[%emt 0:00:39]} 30. Ng3 {[%emt 0:00:05]} Qg5 {[%emt 0:10:57]} 31. Qb6 {[%emt 0:05:12]} Qf4 {[%emt 0:01:00]} 32. Ne2 {[%emt 0:00:59]} Qh4 {[%emt 0:01:55]} 33. Qxb7 {[%emt 0:00:53]} Re6 {[%emt 0:03:08]} 34. Qb6 {[%emt 0:04:28]} g5 {[%emt 0:02:16]} 35. Ng3 {[%emt 0:03:35]} Bg6 {[%emt 0:00:53]} 36. Qd8+ {[%emt 0:01:37]} Kg7 {[%emt 0:00:02]} 37. Rf3 {[%emt 0:00:20]} Qg4 {[%emt 0:00:38]} 38. Nf1 {[%emt 0:02:35]} h6 {[%emt 0:01:54]} 39. Ne3 {[%emt 0:01:09]} Qh4 {[%emt 0:00:25]} 40. Nf5+ {[%emt 0:02:17]} Bxf5 {[%emt 0:00:06]} 41. Rxf5 {[%emt 0:00:01]} Qg4 {[%emt 0:00:29]} 42. Rf3 {[%emt 0:00:07]} Ra7 {[%emt 0:01:06]} 43. Qd3 {[%emt 0:01:13]} Rae7 {[%emt 0:00:44]} 44. Re4 {[%emt 0:00:23]} Qh5 {[%emt 0:00:01]} 45. Rf5 {[%emt 0:00:39]} Ra7 {[%emt 0:00:42]} 46. Re1 {[%emt 0:00:06]} Qg4 {[%emt 0:00:26]} 47. Rf3 {[%emt 0:00:40]} c5 {[%emt 0:01:41]} 48. Qd5 {[%emt 0:00:18]} Qd4 {[%emt 0:00:50]} 49. Rd3 {[%emt 0:01:02]} Ra1 {[%emt 0:00:30]} 50. Rxd4 {[%emt 0:00:24]} Rxe1+ {[%emt 0:00:01]} 51. Kh2 {[%emt 0:00:05]} cxd4 {[%emt 0:00:04]} 52. Qxd4 {[%emt 0:00:08]} R6xe5 {[%emt 0:00:05]} 53. g3 {[%emt 0:00:25]} f6 {[%emt 0:00:45]} 54. b4 {[%emt 0:00:13]} h5 {[%emt 0:01:20]} 55. b5 {[%emt 0:00:20]} Rb1 {[%emt 0:00:27]} 56. Qd7+ {[%emt 0:01:22]} Kh6 {[%emt 0:00:02]} 57. Qc6 {[%emt 0:00:16]} Rf5 {[%emt 0:00:19]} 58. Kg2 {[%emt 0:00:33]} Rb2 {[%emt 0:01:18]} 59. Qb6 {[%emt 0:00:03]} Kg6 {[%emt 0:00:38]} 60. Qd4 {[%emt 0:00:09]} Rb3 {[%emt 0:00:31]} 61. b6 {[%emt 0:00:15]} Re5 {[%emt 0:00:29]} 62. c5 {[%emt 0:00:21]} g4 {[%emt 0:00:30]} 63. Qc4 {[%emt 0:01:12]} Rb2 {[%emt 0:00:28]} 64. c6 {[%emt 0:00:27]} Rxb6 {[%emt 0:00:05]} 65. c7 {[%emt 0:00:52]} Re8 {[%emt 0:00:04]} 66. Qd3+ {[%emt 0:00:29]} f5 {[%emt 0:01:14]} 67. Qd7 {[%emt 0:00:13]} Rg8 {[%emt 0:00:39]} 68. c8=Q {[%emt 0:00:13]} Rxc8 {[%emt 0:00:04]} 69. Qxc8 {[%emt 0:00:05]} Rf6 {[%emt 0:00:32]} 70. Qg8+ {[%emt 0:00:46]} Kh6 {[%emt 0:00:01]} 71. f4 {[%emt 0:00:15]} gxf3+ {[%emt 0:00:06]} 72. Kxf3 {[%emt 0:00:04]} Rg6 {[%emt 0:01:44]} 73. Qh8+ {[%emt 0:00:24]} Kg5 {[%emt 0:00:01]} 74. Qd8+ {[%emt 0:00:07]} Kh6 {[%emt 0:00:07]} 75. Kf4 {[%emt 0:00:15]} Rg4+ {[%emt 0:00:25]} 76. Kxf5 {[%emt 0:00:28]} Kh7 {[%emt 0:00:10]} 77. Qd3 {[%emt 0:01:08]} Rg6 {[%emt 0:00:52]} 78. Qc3 {[%emt 0:00:31]} Rg7 {[%emt 0:01:02]} 79. Kf6 {[%emt 0:00:20]} Rg4 {[%emt 0:00:58]} 80. Qe5 {[%emt 0:01:06]} Kh6 {[%emt 0:00:22]} 81. Kf7 {[%emt 0:00:34]} h4 {[%emt 0:00:38]} 82. gxh4 {[%emt 0:00:51]} Rg2 {[%emt 0:00:36]} 83. Qh8# {[%emt 0:00:08]} 1-0

[Event "Astana Open-A 2019"]
[Site "Nur-Sultan"]
[Date "2019.07.12"]
[Round "4.5"]
[White "Dmitry, Khegai"]
[Black "Rakhimzhan, Alen"]
[Result "1-0"]
[ECO "C54"]
[WhiteElo "2503"]
[BlackElo "2304"]
[Annotator "ChessBase"]
[PlyCount "53"]
[EventDate "2019.07.11"]
[EventCountry "KAZ"]
[SourceTitle "playchess.com"]
[Source "ChessBase"]
[SourceQuality "1"]
[TimeControl "5400+30"]

1. e4 {[%emt 0:05:24]} e5 {[%emt 0:01:05]} 2. Nf3 {[%emt 0:00:04]} Nc6 {[%emt 0:00:09]} 3. Bc4 {[%emt 0:00:04]} Bc5 {[%emt 0:00:08]} 4. c3 {[%emt 0:00:04]} Nf6 {[%emt 0:00:07]} 5. d3 {[%emt 0:00:03]} d6 {[%emt 0:00:26]} 6. Bb3 {[%emt 0:00:12]} a6 {[%emt 0:00:14]} 7. Nbd2 {[%emt 0:00:07]} h6 {[%emt 0:00:08]} 8. Nf1 {[%emt 0:00:15]} Ba7 {[%emt 0:00:09]} 9. Ng3 {[%emt 0:00:05]} O-O {[%emt 0:00:08]} 10. O-O {[%emt 0:00:06]} Be6 {[%emt 0:00:21]} 11. Bc2 {[%emt 0:00:06]} Re8 {[%emt 0:00:17]} 12. h3 {[%emt 0:00:56]} d5 {[%emt 0:00:22]} 13. exd5 {[%emt 0:00:04]} Bxd5 {[%emt 0:00:44]} 14. Re1 {[%emt 0:02:56]} Qd7 {[%emt 0:06:19]} 15. Bd2 {[%emt 0:00:05]} Rad8 {[%emt 0:07:38]} 16. b4 {[%emt 0:04:16]} Be6 {[%emt 0:12:03]} 17. Nxe5 {[%emt 0:09:35]} Nxe5 {[%emt 0:00:22]} 18. Rxe5 {[%emt 0:00:04]} Bxh3 {[%emt 0:03:53]} 19. Rxe8+ {[%emt 0:00:05]} Rxe8 {[%emt 0:00:05]} 20. gxh3 {[%emt 0:01:41]} Qxh3 {[%emt 0:00:06]} 21. d4 {[%emt 0:00:36]} Ng4 {[%emt 0:00:08]} 22. Qf3 {[%emt 0:07:22]} Qh2+ {[%emt 0:42:40]} 23. Kf1 {[%emt 0:00:06]} Qh4 {[%emt 0:00:28]} 24. Qg2 {[%emt 0:02:43]} g6 {[%emt 0:00:33]} 25. Re1 {[%emt 0:00:43]} Rxe1+ {[%emt 0:00:45]} 26. Bxe1 {[%emt 0:00:59]} c6 {[%emt 0:00:21]} 27. Nf5 {[%emt 0:06:25]} 1-0